Cogmind - Beta 15 @@@ ROGUE MODE // 2025.06.01 @ 18:56:30 Player: Rohain Result: Destroyed by TH-CH1(R) with Subdweller Shrapnel Launcher Performance ------------- Evolutions (0) 0 Regions Visited (3) 600 Robots Destroyed (13) 65 Value Destroyed (406) 406 Prototype IDs (1) 20 Alien Tech Used (0) 0 Bonus (0) 0 TOTAL SCORE: 1091 Bonus ------- None Cogmind --------- Core Integrity 0/250 Matter 237/300 Energy 98/100 System Corruption 0% Temperature Cool (0) Movement Rolling (100) Location -10/Subcaves Parts ------- > --- POWER (1) -------- (None) > --- PROPULSION (2) --- Compact Wheel > --- UTILITY (2) ------ Medium Storage Unit Signal Interpreter > --- WEAPON (2) ------- (None) > --- INVENTORY (10) --- Light Ion Engine Aluminum Leg Large Storage Unit Advanced Beam Cannon Advanced Beam Cannon Light Assault Rifle Subdweller Machine Gun Flail Peak State ------------ > --- POWER ------------ Light Ion Engine > --- PROPULSION ------- Wheel Compact Wheel > --- UTILITY ---------- Small Storage Unit > --- WEAPON ----------- Advanced Beam Cannon Advanced Beam Cannon > --- INVENTORY -------- Light Ion Engine Aluminum Leg Assault Rifle Light Assault Rifle Flail [Rating: 10] Favorites ----------- Power Light Ion Engine Engine Light Ion Engine Propulsion Aluminum Leg Leg Aluminum Leg Wheel Compact Wheel Utility Signal Interpreter Storage Medium Storage Unit Processor Signal Interpreter Weapon Improved Light Cannon Energy Gun EM Pulse Gun Energy Cannon Advanced Beam Cannon Ballistic Gun Assault Rifle Ballistic Cannon Improved Light Cannon Build | -11 -10 -10 -10 ------- Run | Yrd Mat Min Sub Slots Evolved . | . . . . Power . | . . . . Propulsion . | . . . . Utility . | . . . . Weapon . | . . . . Parts Attached 18 | 6 12 . . Power 2 | 1 1 . . Engine 2 | 1 1 . . Core . | . . . . Reactor . | . . . . Propulsion 5 | 2 3 . . Treads . | . . . . Leg 3 | 2 1 . . Wheel 2 | . 2 . . Hover . | . . . . Flight . | . . . . Utility 3 | 1 2 . . Device . | . . . . Storage 2 | 1 1 . . Processor 1 | . 1 . . Hackware . | . . . . Protection . | . . . . Artifact . | . . . . Weapon 8 | 2 6 . . Energy Gun 1 | 1 . . . Energy Cannon 3 | . 3 . . Ballistic Gun 2 | 1 1 . . Ballistic Cannon 2 | . 2 . . Launcher . | . . . . Special Weapon . | . . . . Impact Weapon . | . . . . Slashing Weapon . | . . . . Piercing Weapon . | . . . . Special Melee Weapon . | . . . . Unidentified Prototypes 1 | . 1 . . Parts Lost 6 | . 1 . 5 Power 2 | . 1 . 1 Propulsion 2 | . . . 2 Utility . | . . . . Weapon 2 | . . . 2 Highest Loss Streak 4 | . 1 . 4 To Critical Strikes . | . . . . Average Backups 7 | 3 6 9 8 Power . | 1 . 1 1 Propulsion 1 | 1 1 2 1 Utility . | . . 1 1 Weapon 3 | . 3 5 4 Tool/Special . | . . . . Unused Backups 4 | . . . 4 Power 1 | . . . 1 Propulsion . | . . . . Utility 1 | . . . 1 Weapon 2 | . . . 2 Tool/Special . | . . . . Average Slot Usage (%) 90 | . 92 85 88 Engine 13 | . 14 14 13 Leg 22 | . 22 28 18 Wheel 5 | . 5 . 8 Storage 14 | . 14 14 14 Processor 11 | . 9 14 14 Energy Cannon 2 | . 5 . . Ballistic Gun 8 | . 15 . . Ballistic Cannon 10 | . 4 14 18 Peak Build Rating 10 | 6 10 8 10 Average Rating 8 | 3 8 8 8 On Entrance 5 | . 6 8 8 Naked Turns . | . . . . Heaviest Build 21 | 12 21 17 21 Greatest Support 26 | 20 26 20 26 Greatest Overweight (x) 2 | . 1 . 2 Average Overweight (x) . | . . . . Largest Inventory Capacity 10 | 8 10 10 10 Average Capacity 9 | 6 8 10 10 Most Carried 9 | 7 9 9 9 Average Carried 7 | 3 6 9 8 Final Capacity 10 | 8 10 10 10 Final Carried 9 | 4 9 9 8 Class Distribution -------------------- 100% | Mutant Dominant Class ---------------- Mutant | -10/Materials Mutant | -10/Mines Mutant | -10/Subcaves Resources | -11 -10 -10 -10 ----------- Run | Yrd Mat Min Sub Matter Collected 706 | 191 282 64 169 Remotely . | . . . . Salvage Created 336 | . 279 . 57 Parts 17 | . 12 . 5 Haulers Intercepted . | . . . . Recyclers Shooed . | . . . . Parts Field Recycled . | . . . . Retrieved Matter . | . . . . Parts Self-Destructed 1 | . . . 1 Prevented . | . . . . Kills | -11 -10 -10 -10 ------- Run | Yrd Mat Min Sub Combat Hostiles Destroyed 12 | . 9 . 3 Guns 4 | . 4 . . Cannons 7 | . 4 . 3 Classes Destroyed 4 | . 3 . 1 Operator 1 | . 1 . . Swarmer 3 | . 3 . . Grunt 6 | . 6 . . Subdweller 3 | . . . 3 Best Kill Streak 3 | . 2 . 3 Combat Bots Only 3 | . 2 . 3 Max Kills in Single Turn 1 | . 1 . 1 Gunslinging . | . . . . Exploded . | . . . . Melee . | . . . . Uniques/NPCs Destroyed . | . . . . Combat | -11 -10 -10 -10 -------- Run | Yrd Mat Min Sub Hostile Shots Fired 94 | . 62 . 32 Missed 33 | . 19 . 14 Hits 61 | . 43 . 18 Projectile 61 | . 43 . 18 AOE 2 | . . . 2 Critical Strikes 1 | . . . 1 Damage Taken 986 | . 505 . 481 Core 255 | . 132 . 123 Absorbed by Shields . | . . . . Core Remaining (%) 100 | 100 . . . Volleys Fired 76 | . 48 . 28 Largest 2 | . 2 . 2 Hottest 136 | . 136 . 66 Shots Fired 132 | . 88 . 44 Gun 42 | . 42 . . Cannon 90 | . 46 . 44 Launcher . | . . . . Special . | . . . . Kinetic 109 | . 65 . 44 Thermal 23 | . 23 . . Explosive . | . . . . Electromagnetic . | . . . . Robot Hit Streak 8 | . 7 . 8 Robot Miss Streak 3 | . 2 . 3 Penetration Max . | . . . . Secondary Targets . | . . . . Shots Hit Robots 79 | . 53 . 26 Core Hits 20 | . 14 . 6 Critical Kills 1 | . 1 . . Critical Parts Destroyed . | . . . . Critical Strikes 2 | . 2 . . Meltdown 1 | . 1 . . Blast 1 | . 1 . . Melee Attacks . | . . . . Impact . | . . . . Slashing . | . . . . Piercing . | . . . . Sneak Attacks . | . . . . Combat Hostiles . | . . . . Follow-up Attacks . | . . . . Damage Inflicted 1284 | . 815 . 469 Guns 254 | . 254 . . Cannons 1030 | . 561 . 469 Explosions . | . . . . Melee . | . . . . Ramming . | . . . . Kinetic 1038 | . 569 . 469 Thermal 246 | . 246 . . Explosive . | . . . . Electromagnetic . | . . . . Impact . | . . . . Slashing . | . . . . Piercing . | . . . . Highest Corruption . | . . . . Average Corruption . | . . . . Corruption Purged . | . . . . Corruption Blocked . | . . . . Overload Shots . | . . . . Overflow Damage 16 | . 16 . . Projectiles 16 | . 16 . . Explosions . | . . . . Melee . | . . . . Knockbacks 8 | . 4 . 4 Impact . | . . . . Kinetic 8 | . 4 . 4 Secondary . | . . . . Self-Inflicted Damage . | . . . . Shots . | . . . . Rammed . | . . . . Targets Rammed . | . . . . Kicked . | . . . . Crushed . | . . . . Highest Temperature 369 | . 369 . . Average Temperature 86 | . 86 . . Received Heat Transfer 246 | . 222 . 24 Effects 3 | . 3 . . Interference 2 | . 2 . . Matter Decay 1 | . 1 . . Siege Activations . | . . . . Martial Activations . | . . . . Shielding Activations . | . . . . Robots Disrupted . | . . . . Combat Hostiles . | . . . . Robots Corrupted . | . . . . Combat Hostiles . | . . . . Parts Fried . | . . . . Impact Corruptions . | . . . . Robots Melted 1 | . 1 . . Combat Hostiles 1 | . 1 . . Parts Melted 2 | . 2 . . Heat Transferred 444 | . 444 . . Parts Sabotaged . | . . . . Parts Stolen . | . . . . Parts Stripped . | . . . . Power Chain Reactions . | . . . . Alert | -11 -10 -10 -10 ------- Run | Yrd Mat Min Sub Maximum Alert Level . | . . . . Low Security (%) 100 | 100 100 100 . Level 1 . | . . . . Level 2 . | . . . . Level 3 . | . . . . Level 4 . | . . . . Level 5 . | . . . . High Security . | . . . . Max Security . | . . . . Peak Influence 111 | . 111 24 . Initial 24 | . . 24 . Average 44 | . 58 4 . Influence Increases 351 | . 351 . . Destroy 0b10 Robot/C 180 | . 180 . . Destroy 0b10 Robot/NC 5 | . 5 . . Destroy Leader 40 | . 40 . . Successful Hack 5 | . 5 . . Disable Machine 15 | . 15 . . Destroy Structure 1 | . 1 . . Partial Spotted 15 | . 15 . . Lose Combat Pursuer 90 | . 90 . . Influence Decreases 351 | . 288 63 . Entered New Map 39 | . . 39 . Time Decay 302 | . 278 24 . Lost Part 10 | . 10 . . Squads Dispatched 2 | . 2 . . Investigation . | . . . . Extermination . | . . . . Reinforcement 2 | . 2 . . Assault . | . . . . Garrison . | . . . . Intercept . | . . . . Searches Triggered . | . . . . Construction Impeded . | . . . . Haulers Reinforced . | . . . . Active Scanning Responses . | . . . . Cargo Convoy Interrupts . | . . . . Stealth | -11 -10 -10 -10 --------- Run | Yrd Mat Min Sub Distress Signals . | . . . . Communications Jammed . | . . . . Distress Signals . | . . . . Times Spotted 24 | . 19 . 5 Peak Tracking Total 5 | . 5 . 3 Tactical Retreats 3 | . 3 . . Traps | -11 -10 -10 -10 ------- Run | Yrd Mat Min Sub Traps Triggered . | . . . . Indirectly . | . . . . Trap Hack Attempts . | . . . . Triggered . | . . . . Disarmed . | . . . . Reprogrammed . | . . . . Reused . | . . . . Traps Extracted . | . . . . Installed . | . . . . Triggered . | . . . . Machines | -11 -10 -10 -10 ---------- Run | Yrd Mat Min Sub Machines Disabled 1 | . 1 . . Max in Single Turn 1 | . 1 . . Machines Repaired . | . . . . Machines Dismantled . | . . . . Machines Sabotaged . | . . . . Overloaded Fab Kills . | . . . . Hacking | -11 -10 -10 -10 --------- Run | Yrd Mat Min Sub Machines Accessed 1 | . 1 . . Terminals 1 | . 1 . . Fabricators . | . . . . Repair Stations . | . . . . Recycling Units . | . . . . Scanalyzers . | . . . . Garrison Access . | . . . . Total Hacks 4 | . 4 . . Successful 1 | . 1 . . Failed 3 | . 3 . . Catastrophic . | . . . . Database Lockouts . | . . . . Manual 4 | . 4 . . Terminals 4 | . 4 . . Fabricators . | . . . . Repair Stations . | . . . . Recycling Units . | . . . . Scanalyzers . | . . . . Garrison Access . | . . . . Terminal Hacks . | . . . . Fabricator Hacks . | . . . . Repair Station Hacks . | . . . . Recycling Unit Hacks . | . . . . Scanalyzer . | . . . . Garrison Access Hacks . | . . . . Unauthorized Hacks 1 | . 1 . . Terminals 1 | . 1 . . Botnet 1 | . 1 . . Fabricators . | . . . . Repair Stations . | . . . . Recycling Units . | . . . . Scanalyzers . | . . . . Garrison Access . | . . . . Data Cores Recovered . | . . . . Used . | . . . . Hacking Detections 1 | . 1 . . Full Trace Events . | . . . . Feedback Events . | . . . . Feedback Blocked . | . . . . Robot Schematics Acquired . | . . . . Robots Built . | . . . . Authchips . | . . . . Time . | . . . . Total Robot Build Rating . | . . . . Part Schematics Acquired . | . . . . Parts Built . | . . . . Authchips . | . . . . Time . | . . . . Total Part Build Rating . | . . . . Parts Repaired . | . . . . Time . | . . . . Parts Recycled . | . . . . Recycled Matter . | . . . . Retrieved Matter . | . . . . Retrieved Components . | . . . . Parts Scanalyzed . | . . . . Part Schematics Acquired . | . . . . Parts Damaged . | . . . . Bothacking | -11 -10 -10 -10 ------------ Run | Yrd Mat Min Sub Used RIF Installer . | . . . . Robots Hacked . | . . . . Non-combat . | . . . . Combat . | . . . . Robot Hacks Applied . | . . . . Relay Couplers Released . | . . . . Fabnet Peak Effective % . | . . . . Robots Rewired . | . . . . Allies Hacked . | . . . . Hacks Repelled . | . . . . Allies | -11 -10 -10 -10 -------- Run | Yrd Mat Min Sub Total Allies . | . . . . Largest Group . | . . . . Highest-Rated Group . | . . . . Highest-Rated Ally . | . . . . Total Orders . | . . . . Ally Attacks . | . . . . Total Damage . | . . . . Kills . | . . . . Allies Corrupted . | . . . . Allies Melted . | . . . . Intel | -11 -10 -10 -10 ------- Run | Yrd Mat Min Sub Active Infowar (turns) . | . . . . Robot Analysis Total . | . . . . Derelict Logs Recovered 2 | . . . 2 Drone Launches . | . . . . Drone Recoveries . | . . . . Exploration | -11 -10 -10 -10 ------------- Run | Yrd Mat Min Sub Turns Passed 1340 | 73 702 169 396 Spaces Moved 908 | 52 449 114 293 Core 5 | 5 . . . Treads . | . . . . Legs 719 | 47 371 114 187 Wheels 184 | . 78 . 106 Hover . | . . . . Flight . | . . . . Fastest Speed 50 | 50 90 120 90 Average Speed 115 | 113 118 120 109 Slowest Speed 260 | 120 190 120 260 Overloaded Moves . | . . . . Propulsion Burnouts . | . . . . Robots Hopped . | . . . . Potential Cave-ins . | . . . . Cave-ins Triggered . | . . . . Exploration Rate (%) 29 | 3 52 38 23 Regions Visited 3 Branch Regions 2 Pre-discovered Areas 1 | . . . 1 Known Exits Taken 2 | . 1 1 . Unknown Exits Taken 1 | 1 . . . Scrap Searched 1 | . . 1 . Spaces Dug . | . . . . Terrain Destroyed . | . . . . Melee . | . . . . Projectile . | . . . . AOE . | . . . . Terrain Rammed . | . . . . Walls Destroyed . | . . . . Machines Disabled . | . . . . Actions | -11 -10 -10 -10 --------- Run | Yrd Mat Min Sub Total 1074 | 64 538 146 326 Wait 44 | . 11 33 . Move 905 | 51 448 113 293 Hop . | . . . . Pick Up 13 | 7 5 . 1 Fast Attach 9 | 3 6 . . Attach 11 | 3 5 . 3 Detach 6 | . 5 . 1 Swap 4 | . 4 . . Drop 6 | . 6 . . Fire 76 | . 48 . 28 Melee . | . . . . Ram . | . . . . Kick . | . . . . Crush . | . . . . Escape Stasis . | . . . . Rewire . | . . . . Trap . | . . . . Miscellaneous . | . . . . Route ------- -11/Scrapyard -10/Materials (discovered 3 exits: *Mat x2 / *Min) -10/Mines (discovered 2 exits: *Mat / *Sub) -10/Subcaves (discovered 1 exit: [*Scr]) History --------- Turn | Location | Event 3 | -11/Scrapyard | Discovered new exit (range 16) 74 | -11/Scrapyard | Entered Materials 305 | -10/Materials | Build established: Mutant 574 | -10/Materials | Discovered new exit (range 4) 582 | -10/Materials | Identified exit to Materials 613 | -10/Materials | Core integrity fell below 50% 729 | -10/Materials | Discovered exit to Materials (range 8) 756 | -10/Materials | Discovered new exit (range 15) 775 | -10/Materials | Identified exit to Mines 776 | -10/Materials | Entered Mines 827 | -10/Mines | Discovered exit to Materials (range 11) 931 | -10/Mines | Discovered new exit (range 5) 944 | -10/Mines | Identified exit to Subcaves 945 | -10/Mines | Entered Subcaves 946 | -10/Subcaves | Approached by a straggling Scientist 1017 | -10/Subcaves | A swath of the cavern ceiling suddenly collapsed 1019 | -10/Subcaves | Learned Materials terminal intel 1065 | -10/Subcaves | Scientist uncovered a shortcut to Scraptown 1240 | -10/Subcaves | Learned location of Zion (-6) 1313 | -10/Subcaves | A swath of the cavern ceiling suddenly collapsed 1340 | -10/Subcaves | Core integrity fell below 20% 1341 | -10/Subcaves | Destroyed by TH-CH1(R) with Subdweller Shrapnel Launcher Last Messages --------------- 01225_ Acquired 1 matter. 01228_ Acquired 67 matter. 01230_ Acquired 4 matter. 01240_ Acquired derelict log, extracted data. World map updated: -6/Zion. 01241_ Subatomizers dissect the Sub. Power Source. 01244_ Acquired 22 matter. 01249_ Acquired 4 matter. 01254_ Subatomizers dissect the Sub. Power Source, destroying it. 01266_ Subatomizers dissect the Sub. Laser. A swath of the cavern ceiling suddenly collapses. 01320_ 77-KTR(R) knocked back. 01323_ Lgt. Ion Engine destroyed. 01323_ 77-KTR(R) knocked back. 01332_ Wheel destroyed. 01335_ 77-KTR(R) knocked back. 01339_ Imp. Light Cannon destroyed. Map ----- +----------------------------------------------------+ | | | ?????????????????????????????????????????????????? | | ?????????????????????????????????????????????????? | | ?????????????????????????????????????????????????? | | ?????????????????????????????????????????????????? | | ?????????????????????????????????????????????????? | | ?????????????????????????????????????????????????? | | ?????????????????????????????????????????????????? | | ?????????????????????????????????????????????????? | | ?????????????????????????????????????????????????? | | ?????????????????????????????????????????????????? | | ?????????????????????????????????????????????????? | | ?????????????????????????????????????????????????? | | ?????????????????????????????????????????????????? | | ?????????????????????????????????????????????????? | | ??????##??????????????????###????????????????????? | | ?????? ????????????????## ????????????????????? | | ?????? ?????###??????? ""???????????????????? | | ?????? ???? ???????% % """???????????????????? | | ??????# ???## ???????#"R """???????????????????? | | ??????# ???# #???????#" "????????????????????? | | ?????## ???? #???###?#" #???#??? ? ??????????? | | ?????# ????# #???# ###; R ###;## #??????????? | | ?????? ???## ##??# "# ; ;;# #??????????? | | ??????# ?### ####"";;; ;# ????????????? | | ??????# ## # " @ ;#??????????????????? | | ??????# ## ##??????????????????? | | ??????# ## ;; #??????????????????? | | ?????## ## ####### ;## #??????????????????? | | ????## #?????##;#??# ##??????????????????? | | ???## #??????##????##???????????????????? | | ???# #?????????????????????????????????? | | ???### ##????????????????????????????????? | | ?????##### ##???????????????????????????????? | | ????????## #???????????????????????????????? | | ????????# #???????????????????????????????? | | ??????### ##???????????????????????????????? | | ??????# #????????????????????????????????? | | ??????## #????????????????????????????????? | | ?#?????# #????????????????????????????????? | | ??$???## # ##???????????????????????????????? | | ??? ??# ## #???????????????????????????????? | | ??## ## ## #???????????????????????????????? | | ??# #" # #???????????????????????????????? | | ??? # ###?????????????????????????????? | | ???? # ## ##????????????????????????????? | | ????? " ## ### #????????????????????????????? | | ??????#" ## #?#####????????????????????????????? | | ??????# # #??????????????????????????????????? | | ???????# ##?????????????????????????????????? | +----------------------------------------------------+ Best States ------------- Heat Dissipation 25 Energy Generation 10 Energy Capacity 125 Matter Stores 293 Matter Capacity 300 Sight Range 16 Terrain Scan Density 10 Evasion (%) 55 Item Schematics ----------------- None Robot Schematics ------------------ None Fabricated ------------ Nothing Repaired ---------- Nothing Alien Tech Used ----------------- None Achievements -------------- None Challenges ------------ None Game ------ Seed EncryptedChargeShifter Manual? 0 Play Time 00:09:28 Cumulative 76.7 hours Start 2025.06.01 @ 18:47:20 End 2025.06.01 @ 18:56:30 Sessions 1 Manual Loads 0 Difficulty Rogue Special Mode None Game No. 136 Rogue 120 Adventurer 16 Explorer 0 Win Type - Total 1 Types 1/0/0/0/0/0/0/0/0/0 Lore% 32 Gallery% 49 Achievement% 48 Wizard Run 0 Options --------- Layout 2 ASCII 0 Keyboard 0 Movement Mouse Keybinds 0 Fullscreen 1 Font 24/Smallcaps Map View 50x44 Zoom Use 0% Tactical HUD 1 Map Filters NONE Filters NONE Steam 1 RUN: c2e83861-7ffa-4dd1-bdcf-01952f177f83